fUSD/lending_fUSD_20251206
["ID","MTS","AMOUNT","RATE_DAILY","PERIOD"]
[396576810,1765056661589,-627.83,0.00016712,2]
[396576811,1765056661603,-2396.34,0.00016712,2]
[396576812,1765056661624,-538.03664818,0.00016712,2]
[396576813,1765056661648,-500.0,0.00016712,2]
[396576814,1765056661663,-500.0,0.00016712,2]
[396576815,1765056661681,-500.0,0.00016712,2]
[396576816,1765056661720,-225.21713509,0.00016712,2]
[396576817,1765056661750,-500.0,0.00016712,2]
[396576818,1765056661776,-150.0,0.00016712,2]
[396576819,1765056661797,-606.42,0.00016712,2]
[396576820,1765056661811,-500.0,0.00016712,2]
[396576821,1765056661840,-500.0,0.00016712,2]
[396576822,1765056661866,-500.0,0.00016712,2]
[396576823,1765056661883,-500.0,0.00016712,2]
[396576824,1765056661898,-906.76,0.00016712,2]
[396576825,1765056661913,-2190.7,0.00016712,2]
[396576826,1765056661961,-515.97,0.00016712,2]
[396576827,1765056661973,-2286.51,0.00016712,2]
[396576828,1765056661992,-500.0,0.00016712,2]
[396576829,1765056662031,-500.0,0.00016712,2]
[396576830,1765056662046,-1347.5,0.00016712,2]
[396576831,1765056662064,-1479.28,0.00016712,2]
[396576832,1765056662094,-710.67,0.00016712,2]
[396576833,1765056662131,-8082.7,0.00016712,2]
[396576834,1765056662144,-500.0,0.00016712,2]
[396576835,1765056662156,-500.0,0.00016712,2]
[396576836,1765056662167,-1609.38,0.00016712,2]
[396576837,1765056662180,-2502.65,0.00016712,2]
[396576838,1765056662194,-500.0,0.00016712,2]
[396576839,1765056662214,-500.0,0.00016712,2]
[396576840,1765056662226,-500.0,0.00016712,2]
[396576841,1765056662250,-500.0,0.00016712,2]
[396576842,1765056662280,-512.34,0.00016712,2]
[396576843,1765056662291,-500.0,0.00016712,2]
[396576844,1765056662307,-500.0,0.00016712,2]
[396576845,1765056662320,-2231.84,0.00016712,2]
[396576846,1765056662338,-1340.17,0.00016712,2]
[396576847,1765056662359,-500.0,0.00016712,2]
[396576848,1765056662393,-500.0,0.00016712,2]
[396576849,1765056662407,-151.0,0.00016712,2]
[396576850,1765056662418,-500.0,0.00016712,2]
[396576851,1765056662430,-151.0,0.00016712,2]
[396576852,1765056662441,-500.0,0.00016712,2]
[396576853,1765056662461,-500.0,0.00016712,2]
[396576854,1765056662473,-1226.59,0.00016712,2]
[396576855,1765056662484,-500.0,0.00016712,2]
[396576856,1765056662502,-500.0,0.00016712,2]
[396576857,1765056662515,-4033.66,0.00016712,2]
[396576858,1765056662529,-500.0,0.00016712,2]
[396576859,1765056662540,-500.0,0.00016712,2]
[396576860,1765056662554,-500.0,0.00016712,2]
[396576861,1765056662565,-618.4,0.00016712,2]
[396576862,1765056662575,-500.0,0.00016712,2]
[396576863,1765056662587,-500.0,0.00016712,2]
[396576864,1765056662597,-2478.82,0.00016712,2]
[396576865,1765056662609,-500.0,0.00016712,2]
[396576866,1765056662621,-151.0,0.00016712,2]
[396576867,1765056662632,-500.0,0.00016712,2]
[396576868,1765056662649,-151.0,0.00016712,2]
[396576869,1765056662667,-2918.0,0.00016712,2]
[396576870,1765056662678,-684.81,0.00016712,2]
[396576871,1765056662689,-500.0,0.00016712,2]
[396576872,1765056662699,-2547.38,0.00016712,2]
[396576873,1765056662710,-553.25681469,0.00016712,2]
[396576874,1765056662721,-500.0,0.00016712,2]
[396576875,1765056662733,-500.0,0.00016712,2]
[396576876,1765056662744,-500.0,0.00016712,2]
[396576877,1765056662759,-551.42,0.00016712,2]
[396576878,1765056662770,-500.0,0.00016712,2]
[396576879,1765056662781,-500.0,0.00016712,2]
[396576880,1765056662793,-500.0,0.00016712,2]
[396576881,1765056662803,-540.39083481,0.00016712,2]
[396576882,1765056662815,-2533.05,0.00016712,2]
[396576883,1765056662827,-500.0,0.00016712,2]
[396576884,1765056662841,-500.0,0.00016712,2]
[396576885,1765056662854,-500.0,0.00016712,2]
[396576886,1765056662865,-573.44,0.00016712,2]
[396576887,1765056662875,-2389.02,0.00016712,2]
[396576888,1765056662888,-500.0,0.00016712,2]
[396576889,1765056662899,-2450.76,0.00016712,2]
[396576890,1765056662910,-760.56,0.00016712,2]
[396576891,1765056662920,-564.54363423,0.00016712,2]
[396576892,1765056662931,-500.0,0.00016712,2]
[396576893,1765056662941,-500.0,0.00016712,2]
[396576894,1765056662952,-500.0,0.00016712,2]
[396576895,1765056662963,-490.40873029,0.00016712,2]
[396576896,1765056662974,-1950.47,0.00016712,2]
[396576897,1765056662985,-500.0,0.00016712,2]
[396576898,1765056662997,-500.0,0.00016712,2]
[396576899,1765056663008,-2307.35,0.00016712,2]
[396576900,1765056663021,-500.0,0.00016712,2]
[396576901,1765056663032,-500.0,0.00016712,2]
[396576902,1765056663044,-500.0,0.00016712,2]
[396576903,1765056663056,-2654.54,0.00016712,2]
[396576904,1765056663068,-1992.78,0.00016712,2]
[396576905,1765056663079,-500.0,0.00016712,2]
[396576906,1765056663090,-602.76,0.00016712,2]
[396576907,1765056663102,-2208.15,0.00016712,2]
[396576908,1765056663114,-589.23,0.00016712,2]
[396576909,1765056663127,-500.0,0.00016712,2]
[396576910,1765056663140,-7324.72,0.00016712,2]
[396576911,1765056663154,-151.0,0.00016712,2]
[396576912,1765056663167,-500.0,0.00016712,2]
[396576913,1765056663178,-2827.89,0.00016712,2]
[396576914,1765056663188,-500.0,0.00016712,2]
[396576915,1765056663200,-151.0,0.00016712,2]
[396576916,1765056663215,-500.0,0.00016712,2]
[396576917,1765056663228,-500.0,0.00016712,2]
[396576918,1765056663239,-151.0,0.00016712,2]
[396576919,1765056663249,-542.24,0.00016712,2]
[396576920,1765056663260,-151.0,0.00016712,2]
[396576921,1765056663272,-151.0,0.00016712,2]
[396576922,1765056663283,-2824.54,0.00016712,2]
[396576923,1765056663294,-151.0,0.00016712,2]
[396576924,1765056663305,-151.0,0.00016712,2]
[396576925,1765056663315,-515.11,0.00016712,2]
[396576926,1765056663327,-2854.68,0.00016712,2]
[396576927,1765056663337,-151.0,0.00016712,2]
[396576928,1765056663348,-151.0,0.00016712,2]
[396576929,1765056663358,-151.0,0.00016712,2]
[396576930,1765056663369,-553.4,0.00016712,2]
[396576931,1765056663379,-500.0,0.00016712,2]
[396576932,1765056663389,-987.7,0.00016712,2]
[396576933,1765056663399,-500.0,0.00016712,2]
[396576934,1765056663409,-535.89,0.00016712,2]
[396576935,1765056663419,-2114.1,0.00016712,2]
[396576936,1765056663429,-500.0,0.00016712,2]
[396576937,1765056663440,-500.0,0.00016712,2]
[396576938,1765056663450,-500.0,0.00016712,2]
[396576939,1765056663461,-1000.0,0.00016712,2]
[396576940,1765056663471,-2779.57,0.00016712,2]
[396576941,1765056663481,-1740.33,0.00016712,2]
[396576942,1765056663491,-957.52,0.00016712,2]
[396576943,1765056663502,-535.36,0.00016712,2]
[396576944,1765056663512,-500.0,0.00016712,2]
[396576945,1765056663521,-2145.43,0.00016712,2]
[396576946,1765056663531,-500.0,0.00016712,2]
[396576947,1765056663542,-500.0,0.00016712,2]
[396576948,1765056663552,-500.0,0.00016712,2]
[396576949,1765056663563,-2186.57,0.00016712,2]
[396576950,1765056663573,-9782.58,0.00016712,2]
[396576951,1765056663583,-500.0,0.00016712,2]
[396576952,1765056663593,-3567.09,0.00016712,2]
[396576953,1765056663603,-165.834738,0.00016712,2]
[396576954,1765056663614,-500.0,0.00016712,2]
[396576955,1765056663625,-1315.76,0.00016712,2]
[396576956,1765056663635,-2552.29,0.00016712,2]
[396576957,1765056663645,-500.0,0.00016712,2]
[396576958,1765056663655,-500.0,0.00016712,2]
[396576959,1765056663666,-602.78,0.00016712,2]
[396576960,1765056663676,-500.0,0.00016712,2]
[396576961,1765056663686,-500.0,0.00016712,2]
[396576962,1765056663696,-500.0,0.00016712,2]
[396576963,1765056663706,-2273.48,0.00016712,2]
[396576964,1765056663716,-500.0,0.00016712,2]
[396576965,1765056663727,-500.0,0.00016712,2]
[396576966,1765056663738,-2839.47,0.00016712,2]
[396576967,1765056663753,-2703.56,0.00016712,2]
[396576968,1765056663763,-2958.29,0.00016712,2]
[396576969,1765056663774,-500.0,0.00016712,2]
[396576970,1765056663784,-500.0,0.00016712,2]
[396576971,1765056663795,-500.0,0.00016712,2]
[396576972,1765056663805,-887.81,0.00016712,2]
[396576973,1765056663815,-500.0,0.00016712,2]
[396576974,1765056663826,-552.98,0.00016712,2]
[396576975,1765056663838,-2323.94,0.00016712,2]
[396576976,1765056663848,-500.0,0.00016712,2]
[396576977,1765056663859,-2557.21,0.00016712,2]
[396576978,1765056663870,-500.0,0.00016712,2]
[396576979,1765056663880,-500.0,0.00016712,2]
[396576980,1765056663891,-500.53,0.00016712,2]
[396576981,1765056663901,-1436.99,0.00016712,2]
[396576982,1765056663911,-500.0,0.00016712,2]
[396576983,1765056663921,-500.0,0.00016712,2]
[396576984,1765056663931,-2809.65,0.00016712,2]
[396576985,1765056663943,-3025.16,0.00016712,2]
[396576986,1765056663953,-622.35,0.00016712,2]
[396576987,1765056663963,-1297.99,0.00016712,2]
[396576988,1765056663972,-500.0,0.00016712,2]
[396576989,1765056663983,-500.0,0.00016712,2]
[396576990,1765056663993,-5402.38656103,0.00016712,2]
[396576991,1765056664015,-3690.86343897,0.00016712,2]
[396576992,1765056664024,-500.0,0.00016712,2]
[396576993,1765056664034,-742.7,0.00016712,2]
[396576994,1765056664044,-2523.43,0.00016712,2]
[396576995,1765056664054,-500.0,0.00016712,2]
[396576996,1765056664064,-789.42,0.00016712,2]
[396576997,1765056664074,-1040.27,0.00016712,2]
[396576998,1765056664084,-500.0,0.00016712,2]
[396576999,1765056664093,-1946.27,0.00016712,2]
[396577000,1765056664104,-500.0,0.00016712,2]
[396577001,1765056664115,-500.0,0.00016712,2]
[396577002,1765056664125,-500.0,0.00016712,2]
[396577003,1765056664135,-500.0,0.00016712,2]
[396577004,1765056664145,-500.0,0.00016712,2]
[396577005,1765056664155,-500.0,0.00016712,2]
[396577006,1765056664165,-878.18,0.00016712,2]
[396577007,1765056664175,-500.0,0.00016712,2]
[396577008,1765056664186,-151.0,0.00016712,2]
[396577009,1765056664196,-500.0,0.00016712,2]
[396577010,1765056664206,-151.0,0.00016712,2]
[396577011,1765056664216,-151.0,0.00016712,2]
[396577012,1765056664226,-151.0,0.00016712,2]
[396577013,1765056664237,-389.54654077,0.00016712,2]
[396577014,1765056664247,-500.0,0.00016712,2]
[396577015,1765056664257,-529.76,0.00016712,2]
[396577016,1765056664268,-2686.58,0.00016712,2]
[396577017,1765056664286,-810.69,0.00016712,2]
[396577018,1765056664298,-500.0,0.00016712,2]
[396577019,1765056664308,-500.0,0.00016712,2]
[396577020,1765056664318,-500.0,0.00016712,2]
[396577021,1765056664328,-500.0,0.00016712,2]
[396577022,1765056664338,-2531.56,0.00016712,2]
[396577023,1765056664349,-666.49,0.00016712,2]
[396577024,1765056664359,-150.0,0.00016712,2]
[396577025,1765056664369,-500.0,0.00016712,2]
[396577026,1765056664379,-151.0,0.00016712,2]
[396577027,1765056664389,-151.0,0.00016712,2]
[396577028,1765056664399,-500.0,0.00016712,2]
[396577029,1765056664408,-150.0,0.00016712,2]
[396577030,1765056664418,-502.82134715,0.00016712,2]
[396577031,1765056664428,-151.0,0.00016712,2]
[396577032,1765056664438,-3739.09,0.00016712,2]
[396577033,1765056664448,-500.0,0.00016712,2]
[396577034,1765056664458,-500.0,0.00016712,2]
[396577035,1765056664468,-200.0,0.00016712,2]
[396577036,1765056664478,-150.0,0.00016712,2]
[396577037,1765056664489,-500.0,0.00016712,2]
[396577038,1765056664500,-500.0,0.00016712,2]
[396577039,1765056664510,-500.0,0.00016712,2]
[396577040,1765056664520,-500.0,0.00016712,2]
[396577041,1765056664531,-2471.17,0.00016712,2]
[396577042,1765056664541,-150.0,0.00016712,2]
[396577043,1765056664551,-750.84,0.00016712,2]
[396577044,1765056664561,-500.0,0.00016712,2]
[396577045,1765056664571,-549.45,0.00016712,2]
[396577046,1765056664581,-300.0,0.00016712,2]
[396577047,1765056664591,-500.0,0.00016712,2]
[396577048,1765056664601,-500.0,0.00016712,2]
[396577049,1765056664611,-744.5,0.00016712,2]
[396577050,1765056664621,-2485.92,0.00016712,2]
[396577051,1765056664631,-1969.09,0.00016712,2]
[396577052,1765056664641,-500.0,0.00016712,2]
[396577053,1765056664650,-500.0,0.00016712,2]
[396577054,1765056664660,-453.63135364,0.00016712,2]
[396577055,1765056664670,-500.0,0.00016712,2]
[396577056,1765056664680,-500.0,0.00016712,2]
[396577057,1765056664690,-500.0,0.00016712,2]
[396577058,1765056664699,-500.0,0.00016712,2]
[396577059,1765056664709,-500.0,0.00016712,2]
[396577060,1765056664719,-500.0,0.00016712,2]
[396577061,1765056664728,-2270.17,0.00016712,2]
[396577062,1765056664738,-500.0,0.00016712,2]
[396577063,1765056664749,-515.74,0.00016712,2]
[396577064,1765056664760,-500.0,0.00016712,2]
[396577065,1765056664771,-1954.29,0.00016712,2]
[396577066,1765056664780,-500.0,0.00016712,2]
[396577067,1765056664791,-150.0,0.00016712,2]
[396577068,1765056664800,-2188.1,0.00016712,2]
[396577069,1765056664811,-500.0,0.00016712,2]
[396577070,1765056664823,-500.0,0.00016712,2]
[396577071,1765056664834,-150.0,0.00016712,2]
[396577072,1765056664844,-150.0,0.00016712,2]
[396577073,1765056664854,-500.0,0.00016712,2]
[396577074,1765056664865,-605.62,0.00016712,2]
[396577075,1765056664874,-151.0,0.00016712,2]
[396577076,1765056664884,-151.0,0.00016712,2]
[396577077,1765056664894,-500.0,0.00016712,2]
[396577078,1765056664905,-813.38,0.00016712,2]
[396577079,1765056664915,-1270.71,0.00016712,2]
[396577080,1765056664925,-500.0,0.00016712,2]
[396577081,1765056664934,-500.0,0.00016712,2]
[396577082,1765056664944,-500.0,0.00016712,2]
[396577083,1765056664954,-500.0,0.00016712,2]
[396577084,1765056664964,-500.0,0.00016712,2]
[396577085,1765056664975,-500.0,0.00016712,2]
[396577086,1765056664985,-3712.82,0.00016712,2]
[396577087,1765056664995,-553.88,0.00016712,2]
[396577088,1765056665004,-150.0,0.00016712,2]
[396577089,1765056665014,-659.11,0.00016712,2]
[396577090,1765056665025,-500.0,0.00016712,2]
[396577091,1765056665035,-500.0,0.00016712,2]
[396577092,1765056665044,-2146.97,0.00016712,2]
[396577093,1765056665054,-500.0,0.00016712,2]
[396577094,1765056665064,-526.77,0.00016712,2]
[396577095,1765056665074,-504.58278905,0.00016712,2]
[396577096,1765056665084,-500.0,0.00016712,2]
[396577097,1765056665094,-533.875102,0.00016712,2]
[396577098,1765056665104,-2911.1,0.00016712,2]
[396577099,1765056665114,-533.875102,0.00016712,2]
[396577100,1765056665124,-500.0,0.00016712,2]
[396577101,1765056665134,-500.0,0.00016712,2]
[396577102,1765056665143,-533.875102,0.00016712,2]
[396577103,1765056665153,-533.875102,0.00016712,2]
[396577104,1765056665162,-584.41,0.00016712,2]
[396577105,1765056665172,-533.875102,0.00016712,2]
[396577106,1765056665181,-533.875102,0.00016712,2]
[396577107,1765056665191,-1084.14,0.00016712,2]
[396577108,1765056665200,-1048.67,0.00016712,2]
[396577109,1765056665210,-533.875102,0.00016712,2]
[396577110,1765056665219,-1379.62,0.00016712,2]
[396577111,1765056665228,-660.9,0.00016712,2]
[396577112,1765056665238,-533.875102,0.00016712,2]
[396577113,1765056665247,-2556.45,0.00016712,2]
[396577114,1765056665257,-609.28,0.00016712,2]
[396577115,1765056665267,-1748.73,0.00016712,2]
[396577116,1765056665276,-151.0,0.00016712,2]
[396577117,1765056665286,-500.0,0.00016712,2]
[396577118,1765056665295,-500.0,0.00016712,2]
[396577119,1765056665305,-2088.97,0.00016712,2]
[396577120,1765056665314,-2312.47,0.00016712,2]
[396577121,1765056665324,-500.0,0.00016712,2]
[396577122,1765056665333,-799.76,0.00016712,2]
[396577123,1765056665343,-500.0,0.00016712,2]
[396577124,1765056665352,-500.0,0.00016712,2]
[396577125,1765056665362,-500.0,0.00016712,2]
[396577126,1765056665372,-151.000017,0.00016767,2]
[396577127,1765056665382,-151.0,0.00016767,2]
[396577128,1765056665391,-151.0,0.00016767,2]
[396577129,1765056665401,-151.0,0.00016767,2]
[396577130,1765056665410,-151.0,0.00016767,2]
[396577131,1765056665420,-151.0,0.00016767,2]
[396577132,1765056665430,-151.0,0.00016767,2]
[396577133,1765056665440,-151.0,0.00016767,2]
[396577134,1765056665449,-286.242662,0.00016767,2]
[396577135,1765056665459,-211.328325,0.00016767,2]
[396577136,1765056665469,-286.242662,0.00016767,2]
[396577137,1765056665479,-286.242662,0.00016767,2]
[396577138,1765056665489,-286.242662,0.00016767,2]
[396577139,1765056665499,-151.0,0.00016767,2]
[396577140,1765056665509,-501.4245699,0.00016773,2]
[396577141,1765056665518,-500.0,0.00016773,2]
[396577142,1765056665528,-500.0,0.00016773,2]
[396577143,1765056665538,-500.0,0.00016773,2]
[396577144,1765056665547,-500.0,0.00016773,2]
[396577145,1765056665557,-500.0,0.00016773,2]
[396577146,1765056665567,-151.0,0.00016773,2]
[396577147,1765056665576,-151.0,0.00016773,2]
[396577148,1765056665587,-151.0,0.00016773,2]
[396577149,1765056665598,-163.462375,0.00016773,2]
[396577150,1765056665608,-233.62617736,0.00016788,2]
[396577151,1765056665617,-1000.0,0.000168,2]
[396577152,1765056665627,-270.0,0.00016801,2]
[396577153,1765056665637,-4307.0,0.00016804,2]
[396577154,1765056665647,-954.36967,0.0001683,2]
[396577155,1765056665657,-218.84178791,0.00016834,2]
[396577156,1765056665668,-1260.89911105,0.00016836,2]
[396577157,1765056665678,-150.0,0.00016849,2]
[396577158,1765056665689,-500.0,0.00016849,2]
[396577159,1765056665698,-150.0,0.00016849,2]
[396577160,1765056665708,-500.0,0.00016849,2]
[396577161,1765056665718,-150.0,0.00016849,2]
[396577162,1765056665727,-201.56637742,0.00016849,2]
[396577163,1765056665736,-150.0,0.00016849,2]
[396577164,1765056665747,-150.0,0.00016849,2]
[396577165,1765056665761,-150.0,0.00016849,2]
[396577166,1765056665771,-200.0,0.00016849,2]
[396577167,1765056665781,-500.0,0.00016849,2]
[396577168,1765056665791,-151.0,0.00016856,2]
[396577169,1765056665800,-151.0,0.00016856,2]
[396577170,1765056665810,-151.0,0.00016856,2]
[396577171,1765056665820,-152.0,0.00016856,2]
[396577172,1765056665831,-152.0,0.00016856,2]
[396577173,1765056665841,-156.48922587,0.00016856,2]
[396577174,1765056665851,-833.0,0.00016856,2]
[396577175,1765056665860,-151.12890987,0.00016856,2]
[396577176,1765056665871,-413.86168,0.00016857,2]
[396577177,1765056665880,-413.86168,0.00016857,2]
[396577178,1765056665890,-413.86168,0.00016857,2]
[396577179,1765056665900,-413.86168,0.00016857,2]
[396577180,1765056665909,-206.612132,0.00016857,2]
[396577181,1765056665919,-614.0,0.00016857,2]
[396577182,1765056665929,-1259.0,0.00016857,2]
[396577183,1765056665938,-925.395,0.00016857,2]
[396577184,1765056666250,-1195.0,0.00016857,2]
[396577185,1765056666260,-1334.924,0.00016857,2]
[396577186,1765056666270,-253.0,0.00016857,2]
[396577187,1765056666280,-611.0,0.00016857,2]
[396577188,1765056666289,-853.09882412,0.00016859,2]
[396577189,1765056666298,-200.0,0.00016864,2]
[396577190,1765056666308,-270.0,0.00016869,2]
[396577191,1765056666317,-213.28228276,0.00016886,2]
[396577192,1765056666327,-150.22241237,0.00016886,2]
[396577193,1765056666336,-2879.95145318,0.00016886,2]
[396577194,1765056666346,-406.4873192,0.00016896,2]
[396577195,1765056666361,-193.5126808,0.00016896,2]
[396577196,1765056666370,-838.14482164,0.000169,2]
[396577197,1765056666408,-500.0,0.00016712,2]
[396577198,1765056666418,-161.85517836,0.000169,2]
[396577199,1765056666428,-30.568424,0.000169,2]
[396577200,1765056666450,-126.86850916,0.000169,2]
[396577201,1765056666459,-233.62617736,0.000169,2]
[396577202,1765056666468,-158.25098336,0.00016915,2]
[396577203,1765056666479,-42.47336415,0.00016915,2]
[396577204,1765056666490,-1580.29999603,0.00016915,2]
[396577205,1765056666501,-4187.49704493,0.00016915,2]
[396577206,1765056666905,-716.37,0.00016044,2]
[396577207,1765056666916,-1969.9780678,0.00016044,2]
[396577208,1765056666994,-7817.81099119,0.00016044,2]
[396577209,1765056667003,-201.39543503,0.00016438,2]
[396577210,1765056667012,-500.0,0.00016438,2]
[396577211,1765056667021,-151.0,0.00016438,2]
[396577212,1765056667030,-7731.32837972,0.00016472,2]
[396577213,1765056667042,-3353.76164921,0.00016472,2]
[396577214,1765056667051,-500.0,0.00016712,2]
[396577215,1765056667060,-151.0,0.00016712,2]
[396577216,1765056667070,-880.6604172,0.00016915,2]
[396577217,1765056667125,-604.0,0.0001525,2]
[396577218,1765056667136,-65.9199515,0.0001525,2]
[396577219,1765056667145,-1110.44019001,0.00016915,2]
[396577220,1765056667154,-150.0,0.00016959,2]
[396577221,1765056667163,-150.0,0.00016959,2]
[396577222,1765056667172,-1097.0,0.0001696,2]
[396577223,1765056667181,-500.0,0.00016973,2]
[396577224,1765056667191,-161.88438716,0.00016973,2]
[396577225,1765056667200,-500.0,0.00016973,2]
[396577226,1765056667209,-500.0,0.00016973,2]
[396577227,1765056667218,-500.0,0.00016973,2]
[396577228,1765056667227,-500.0,0.00016973,2]
[396577229,1765056667236,-500.0,0.00016973,2]
[396577230,1765056667246,-500.0,0.00016973,2]
[396577231,1765056667255,-500.0,0.00016973,2]
[396577232,1765056667264,-218.05857181,0.00016973,2]
[396577233,1765056667274,-500.0,0.00016973,2]
[396577234,1765056667283,-500.0,0.00016973,2]
[396577235,1765056667292,-500.0,0.00016973,2]
[396577236,1765056667302,-500.0,0.00016973,2]
[396577237,1765056667311,-500.0,0.00016973,2]
[396577238,1765056667320,-500.0,0.00016973,2]
[396577239,1765056667329,-500.0,0.00016973,2]
[396577240,1765056667339,-500.0,0.00016973,2]
[396577241,1765056667348,-500.0,0.00016973,2]
[396577242,1765056667358,-500.0,0.00016973,2]
[396577243,1765056667368,-156.18843256,0.00016973,2]
[396577244,1765056667379,-500.0,0.00016973,2]
[396577245,1765056667388,-500.0,0.00016973,2]
[396577246,1765056667397,-500.0,0.00016973,2]
[396577247,1765056667407,-500.0,0.00016973,2]
[396577248,1765056667416,-500.0,0.00016973,2]
[396577249,1765056667426,-500.0,0.00016973,2]
[396577250,1765056667435,-500.0,0.00016973,2]
[396577251,1765056667444,-500.0,0.00016973,2]
[396577252,1765056667454,-500.0,0.00016973,2]
[396577253,1765056667463,-500.0,0.00016973,2]
[396577254,1765056667472,-500.0,0.00016973,2]
[396577255,1765056667482,-196.76119464,0.00016973,2]
[396577256,1765056667491,-500.0,0.00016973,2]
[396577257,1765056667502,-500.0,0.00016973,2]
[396577258,1765056667511,-500.0,0.00016973,2]
[396577259,1765056667520,-500.0,0.00016973,2]
[396577260,1765056667529,-500.0,0.00016973,2]
[396577261,1765056667539,-500.0,0.00016973,2]
[396577262,1765056667548,-500.0,0.00016973,2]
[396577263,1765056667558,-500.0,0.00016973,2]
[396577264,1765056667568,-500.0,0.00016973,2]
[396577265,1765056667577,-500.0,0.00016973,2]
[396577266,1765056667587,-500.0,0.00016973,2]
[396577267,1765056667596,-500.0,0.00016973,2]
[396577268,1765056667605,-500.0,0.00016973,2]
[396577269,1765056667614,-306.35770823,0.00016973,2]
[396577270,1765056667624,-500.0,0.00016973,2]
[396577271,1765056667633,-500.0,0.00016973,2]
[396577272,1765056667643,-500.0,0.00016973,2]
[396577273,1765056667652,-533.875102,0.00016973,2]
[396577274,1765056667662,-533.875102,0.00016973,2]
[396577275,1765056667672,-533.875102,0.00016973,2]
[396577276,1765056667681,-533.875102,0.00016973,2]
[396577277,1765056667690,-539.27684315,0.00016976,2]
[396577278,1765056667700,-853.21,0.00016985,2]
[396577279,1765056667710,-853.21,0.00016985,2]
[396577280,1765056667719,-853.21,0.00016985,2]
[396577281,1765056667728,-200.0,0.00016986,2]
[396577282,1765056667738,-500.0,0.00016986,2]
[396577283,1765056667747,-500.0,0.00016986,2]
[396577284,1765056667761,-150.0,0.00016986,2]
[396577285,1765056667770,-150.0,0.00016986,2]
[396577286,1765056667780,-500.0,0.00016986,2]
[396577287,1765056667790,-192.74475342,0.00016986,2]
[396577288,1765056667801,-627.46,0.00016986,2]
[396577289,1765056667811,-500.0,0.00016986,2]
[396577290,1765056667821,-500.0,0.00016986,2]
[396577291,1765056667832,-500.0,0.00016986,2]
[396577292,1765056667842,-500.0,0.00016986,2]
[396577293,1765056667851,-518.03650229,0.00016986,2]
[396577294,1765056667861,-2047.37,0.00016986,2]
[396577295,1765056667870,-496.09231865,0.00016986,2]
[396577296,1765056667881,-500.0,0.00016986,2]
[396577297,1765056667891,-500.0,0.00016986,2]
[396577298,1765056667900,-500.0,0.00016986,2]
[396577299,1765056667909,-500.0,0.00016986,2]
[396577300,1765056667918,-500.0,0.00016986,2]
[396577301,1765056667927,-500.0,0.00016986,2]
[396577302,1765056667937,-500.0,0.00016986,2]
[396577303,1765056667946,-500.0,0.00016986,2]
[396577304,1765056667956,-500.0,0.00016986,2]
[396577305,1765056667965,-500.0,0.00016986,2]
[396577306,1765056667976,-500.0,0.00016986,2]
[396577307,1765056667985,-500.0,0.00016986,2]
[396577308,1765056667995,-500.0,0.00016986,2]
[396577309,1765056668005,-500.0,0.00016986,2]